bitfinex-derivatives/quotes_SOLF0:USTF0_20250924
["timestamp","ask_amount","ask_price","bid_price","bid_amount"]
[1758755335585,4.2502,211.66,211.64,115.68]
[1758755335784,11.6402,211.66,211.64,115.68]
[1758755336183,4.2502,211.66,211.64,115.68]
[1758755336391,4.2502,211.66,211.64,123.3]
[1758755338995,11.6402,211.66,211.64,115.68]
[1758755339487,4.2506,211.64,211.62,7.62]
[1758755339891,4.2506,211.64,211.61,115.4]
[1758755340091,4.2506,211.64,211.62,7.62]
[1758755340484,0.82249087,211.71,211.62,7.58]
[1758755340686,7.47,211.77,211.67,7.58]
[1758755340894,3.36592328,211.76,211.69,7.58]
[1758755341091,3.36592328,211.76,211.68,115.42]
[1758755341092,7.47,211.72,211.68,115.42]
[1758755341296,10.83592328,211.71,211.68,115.42]
[1758755341593,7.47,211.75,211.68,123.0]
[1758755341797,3.36666714,211.74,211.68,123.0]
[1758755341986,4.2491,211.71,211.69,7.58]
[1758755342390,4.2491,211.71,211.68,115.42]
[1758755343092,4.2491,211.71,211.69,7.58]
[1758755343995,4.2491,211.71,211.68,115.42]
[1758755344198,4.2491,211.71,211.69,7.58]
[1758755344893,4.2483,211.75,211.69,7.58]
[1758755345091,4.2483,211.75,211.68,115.42]
[1758755345291,8.29231595,211.78,211.69,7.58]
[1758755345492,4.2486,211.74,211.69,7.58]
[1758755345698,4.2486,211.74,211.68,115.42]
[1758755346198,3.37329711,211.73,211.68,115.42]
[1758755346491,4.2486,211.74,211.69,7.58]
[1758755346696,4.2486,211.74,211.68,115.42]
[1758755346697,3.37343248,211.73,211.68,115.42]
[1758755346893,4.2486,211.74,211.68,115.42]
[1758755347097,3.37343248,211.73,211.69,7.58]
[1758755347298,3.37343248,211.72,211.69,2.69815198]
[1758755347498,4.2481,211.76,211.7,7.58]
[1758755347801,3.37622394,211.75,211.7,7.58]
[1758755348000,3.37622394,211.74,211.7,7.58]
[1758755348195,3.37622394,211.73,211.69,2.69815198]
[1758755348398,3.37622394,211.72,211.7,7.58]
[1758755348599,3.37622394,211.71,211.7,7.58]
[1758755348801,3.37622394,211.73,211.7,7.58]
[1758755349096,3.37622394,211.72,211.69,7.58]
[1758755349294,3.37622394,211.71,211.69,7.58]
[1758755349495,3.37622394,211.7,211.69,7.58]
[1758755349697,3.37622394,211.75,211.69,7.58]
[1758755349995,4.2488,211.73,211.69,7.58]
[1758755350200,10.84622394,211.72,211.69,7.58]
[1758755350399,3.37622394,211.71,211.69,7.58]
[1758755350594,3.37622394,211.7,211.69,7.58]
[1758755351101,3.37622394,211.72,211.69,7.58]
[1758755351400,3.37622394,211.71,211.68,115.42]
[1758755351601,3.37622394,211.7,211.69,7.58]
[1758755351899,3.37622394,211.77,211.69,7.58]
[1758755352201,11.7187,211.73,211.69,7.58]
[1758755352394,3.37622394,211.72,211.69,7.58]
[1758755352594,3.37622394,211.71,211.69,7.58]
[1758755352796,3.37622394,211.7,211.69,7.58]
[1758755353191,3.37622394,211.71,211.69,7.58]
[1758755353396,3.37622394,211.7,211.69,7.58]
[1758755354101,3.37622394,211.71,211.69,7.58]
[1758755354296,3.37622394,211.7,211.69,7.58]
[1758755354697,3.37622394,211.75,211.69,9.30722492]
[1758755354898,10.84622394,211.74,211.7,7.58]
[1758755355099,3.37622394,211.73,211.7,7.58]
[1758755355302,3.37622394,211.72,211.69,1.72722492]
[1758755355602,3.37622394,211.71,211.7,7.58]
[1758755358705,3.37622394,211.73,211.7,7.58]
[1758755358907,3.37622394,211.72,211.7,7.58]
[1758755359101,7.47,211.77,211.69,7.58]
[1758755359398,3.38229177,211.76,211.69,7.58]
[1758755359603,3.38229177,211.75,211.69,7.58]
[1758755359801,3.38229177,211.74,211.7,7.58]
[1758755359998,3.38229177,211.73,211.7,7.58]
[1758755360206,7.47,211.79,211.72,9.30722492]
[1758755360400,3.38171608,211.78,211.72,124.70722492]
[1758755360600,10.85171608,211.77,211.72,124.70722492]
[1758755360800,3.38171608,211.76,211.73,7.58]
[1758755361101,3.38171608,211.75,211.73,7.58]
[1758755361300,7.47,211.73,211.69,124.68722492]
[1758755361501,3.38171608,211.72,211.69,124.68722492]
[1758755361704,10.85171608,211.72,211.69,124.68722492]
[1758755361907,3.38171608,211.71,211.69,124.68722492]
[1758755362100,3.38171608,211.71,211.69,122.96]
[1758755362497,3.38171608,211.71,211.69,115.38]
[1758755362811,11.7182,211.75,211.7,7.58]
[1758755363107,3.37661437,211.74,211.7,7.58]
[1758755363304,3.37661437,211.73,211.7,7.58]
[1758755363504,3.37661437,211.72,211.7,7.58]
[1758755363808,3.37661437,211.71,211.7,7.58]
[1758755364209,11.7182,211.75,211.69,117.10722492]
[1758755364405,3.37637528,211.74,211.69,117.10722492]
[1758755364603,3.37637528,211.73,211.7,7.61]
[1758755364804,3.37637528,211.72,211.7,7.61]
[1758755365003,11.7182,211.75,211.69,124.71722492]
[1758755365203,3.37637528,211.74,211.69,124.71722492]
[1758755365399,3.37637528,211.73,211.69,117.10722492]
[1758755365606,1.72722492,211.76,211.7,7.61]
[1758755365809,3.375904,211.75,211.7,7.61]
[1758755366011,3.375904,211.74,211.7,7.61]
[1758755366211,3.375904,211.73,211.7,7.61]
[1758755366507,3.375904,211.72,211.69,117.10722492]
[1758755366712,7.24,211.75,211.69,124.71722492]
[1758755366902,3.37591303,211.74,211.69,117.10722492]
[1758755367108,3.37591303,211.73,211.69,117.10722492]
[1758755367315,3.37591303,211.72,211.7,7.61]
[1758755367610,11.4883,211.75,211.69,124.71722492]
[1758755367807,3.37577883,211.74,211.69,117.10722492]
[1758755368000,3.37577883,211.73,211.69,117.10722492]
[1758755368201,11.4883,211.75,211.69,124.71722492]
[1758755368411,3.37567824,211.74,211.69,117.10722492]
[1758755368603,3.37567824,211.73,211.69,117.10722492]
[1758755368804,11.4883,211.75,211.69,117.10722492]
[1758755369000,3.37567824,211.74,211.69,124.71722492]
[1758755369202,3.37567824,211.73,211.69,117.10722492]
[1758755369403,4.2485,211.74,211.69,122.99]
[1758755369605,7.24,211.72,211.69,122.99]
[1758755370514,11.4885,211.74,211.7,7.61]
[1758755370719,3.37583297,211.73,211.7,7.61]
[1758755370914,3.37583297,211.72,211.7,7.61]
[1758755371108,3.37583297,211.71,211.7,7.61]
[1758755371308,4.2487,211.73,211.7,7.61]
[1758755371508,3.37591134,211.72,211.7,7.61]
[1758755371704,4.2487,211.73,211.7,7.61]
[1758755371904,3.37591134,211.72,211.7,7.61]
[1758755372108,11.4887,211.73,211.7,7.61]
[1758755372312,7.62503929,211.72,211.7,7.61]
[1758755372504,3.37613929,211.71,211.7,7.61]
[1758755372710,7.24,211.7,211.69,115.38]
[1758755372906,10.61613929,211.7,211.69,115.38]
[1758755373111,10.61613929,211.7,211.66,7.61]
[1758755373311,3.37613929,211.69,211.65,7.61]
[1758755373612,12.34336421,211.68,211.58,7.61]
[1758755373809,1.72722492,211.66,211.6,1.72722492]
[1758755374010,10.61613929,211.65,211.61,7.61]
[1758755374205,7.24,211.65,211.61,7.61]
[1758755374513,7.24,211.65,211.6,115.38]
[1758755374514,7.24,211.63,211.6,115.38]
[1758755374715,7.24,211.61,211.58,7.61]
[1758755374909,3.3778661,211.6,211.56,122.99]
[1758755375214,7.6292661,211.6,211.56,122.99]
[1758755375415,4.2514,211.6,211.56,122.99]
[1758755375616,7.62935818,211.59,211.56,115.38]
[1758755375813,3.37808228,211.58,211.56,115.38]
[1758755376013,11.4916,211.59,211.56,115.38]
[1758755377119,11.4916,211.59,211.56,122.99]
[1758755380318,4.2516,211.59,211.56,122.99]
[1758755381614,1.72722492,211.6,211.53,1.72722492]
[1758755381923,3.36929008,211.59,211.53,17.36722492]
[1758755382219,10.60929008,211.58,211.54,7.61]
[1758755382419,7.24,211.58,211.54,7.61]
[1758755383215,7.24,211.58,211.53,17.36722492]
[1758755383216,7.24,211.65,211.56,7.61]
[1758755383420,5.09276415,211.64,211.57,1.72722492]
[1758755383622,3.36553923,211.63,211.57,1.72722492]
[1758755384014,4.251,211.62,211.57,1.72722492]
[1758755384215,7.24,211.61,211.57,1.72722492]
[1758755384414,7.24,211.61,211.57,9.33722492]
[1758755384716,7.24,211.61,211.57,7.61]
[1758755385221,7.24,211.61,211.55,1.72722492]
[1758755386218,7.24,211.61,211.56,7.61]
[1758755386418,7.24,211.61,211.55,9.33722492]
[1758755388624,11.491,211.62,211.58,7.61]
[1758755389422,7.24,211.61,211.58,7.61]
[1758755391620,4.2512,211.61,211.58,7.61]
[1758755391924,11.4912,211.61,211.58,7.61]
[1758755393021,7.24,211.6,211.57,1.72722492]
[1758755393325,7.24,211.6,211.57,9.33722492]
[1758755394225,7.24,211.6,211.57,7.61]
[1758755396926,7.24,211.6,211.55,1.72722492]
[1758755397521,7.24,211.6,211.56,7.96]
[1758755397721,7.24,211.6,211.55,1.72722492]
[1758755399228,11.4914,211.6,211.56,7.96]
[1758755399428,11.4914,211.6,211.55,1.72722492]
[1758755399617,11.4914,211.6,211.56,7.96]
[1758755400131,11.4914,211.6,211.55,1.72722492]
[1758755400529,11.4914,211.6,211.56,7.24]
[1758755400731,4.2509,211.62,211.58,7.24]
[1758755401636,4.2509,211.62,211.57,1.72722492]
[1758755401836,11.4909,211.62,211.58,7.24]
[1758755402136,11.4909,211.62,211.57,1.72722492]
[1758755402337,11.4909,211.62,211.58,7.24]
[1758755402635,11.4909,211.62,211.57,1.72722492]
[1758755402829,4.2511,211.61,211.57,1.72722492]
[1758755403034,4.2511,211.61,211.58,7.24]
[1758755403235,11.4911,211.61,211.58,7.24]
[1758755404037,7.24,211.71,211.6,7.24]
[1758755404238,3.38257051,211.7,211.67,8.96722492]
[1758755404439,7.24,211.7,211.67,8.96722492]
[1758755404633,67.81602492,211.74,211.67,1.72722492]
[1758755404836,67.81602492,211.74,211.62,7.24]
[1758755404837,7.24,211.69,211.62,7.24]
[1758755405133,3.38342304,211.68,211.64,1.72722492]
[1758755405334,7.24,211.71,211.64,1.72722492]
[1758755405535,3.38375856,211.7,211.64,1.72722492]
[1758755405731,7.24,211.68,211.64,8.96722492]
[1758755406038,4.25,211.67,211.64,8.96722492]
[1758755407136,7.24,211.66,211.64,1.72722492]
[1758755407835,4.25,211.67,211.64,1.72722492]
[1758755408038,4.25,211.67,211.64,8.96722492]
[1758755408227,11.49,211.67,211.64,8.96722492]
[1758755408629,11.49,211.67,211.64,1.72722492]
[1758755408630,7.24,211.66,211.64,1.72722492]
[1758755409029,4.25,211.67,211.64,8.96722492]
[1758755409230,11.49,211.67,211.64,8.96722492]
[1758755409739,11.49,211.67,211.64,1.72722492]
[1758755410141,7.24,211.65,211.56,1.72722492]
[1758755410337,7.24,211.62,211.55,7.24]
[1758755410635,8.96722492,211.66,211.58,8.96722492]
[1758755410840,3.38901417,211.65,211.58,8.96722492]
[1758755411037,3.38901417,211.64,211.62,1.72722492]
[1758755411240,4.2501,211.66,211.63,7.24]
[1758755412142,3.38984849,211.65,211.63,7.24]
[1758755412441,4.2501,211.66,211.63,7.24]
[1758755412836,4.2497,211.68,211.63,7.24]
[1758755413037,3.39094617,211.67,211.63,7.24]
[1758755413350,3.39094617,211.66,211.63,7.24]
[1758755413637,7.24,211.69,211.64,1.72722492]
[1758755413840,7.64204073,211.68,211.66,8.96722492]
[1758755414139,7.24,211.72,211.66,8.96722492]
[1758755414344,7.24,211.7,211.66,1.72722492]
[1758755414546,10.63316167,211.69,211.66,7.24]
[1758755414742,7.24,211.69,211.63,9.93972088]
[1758755414944,4.2495,211.69,211.63,9.93972088]
[1758755415142,3.39437289,211.68,211.63,9.93972088]
[1758755415339,4.2495,211.69,211.63,2.69972088]
[1758755415642,3.39403234,211.68,211.64,7.24]
[1758755415843,4.2495,211.69,211.64,7.24]
[1758755416040,3.39403234,211.68,211.63,2.69972088]
[1758755416240,4.2495,211.69,211.64,7.24]
[1758755416444,3.39510719,211.68,211.63,2.69972088]
[1758755416644,5.27561049,211.76,211.66,2.69972088]
[1758755416846,3.39506999,211.75,211.67,7.24]
[1758755417044,3.39506999,211.74,211.67,7.24]
[1758755417244,4.249,211.72,211.67,7.24]
[1758755417445,3.39506999,211.71,211.66,2.69972088]
[1758755417842,3.39506999,211.71,211.67,7.24]
[1758755418041,10.63506999,211.7,211.63,9.93972088]
[1758755418242,3.39506999,211.69,211.63,9.93972088]
[1758755419247,3.39506999,211.68,211.63,7.24]
[1758755419444,10.63506999,211.67,211.6,2.69972088]
[1758755419645,3.39506999,211.66,211.6,2.69972088]
[1758755419846,7.24,211.7,211.61,7.24]
[1758755420145,3.39658359,211.69,211.61,7.24]
[1758755420346,4.25,211.66,211.61,7.24]
[1758755420545,4.25,211.66,211.6,2.69972088]
[1758755420941,4.25,211.66,211.61,7.24]
[1758755421146,4.25,211.66,211.6,2.69972088]
[1758755422051,4.25,211.66,211.61,7.24]
[1758755422353,7.24,211.7,211.61,7.24]
[1758755422552,3.39640434,211.69,211.61,7.24]
[1758755422752,3.39640434,211.68,211.61,7.24]
[1758755423052,3.39640434,211.67,211.61,7.24]
[1758755423353,3.39640434,211.66,211.61,7.24]
[1758755423745,7.24,211.7,211.61,7.24]
[1758755424043,3.39656286,211.69,211.63,2.69972088]
[1758755424241,3.39656286,211.68,211.63,2.69972088]
[1758755424442,3.39596358,211.67,211.61,7.28]
[1758755424643,7.85,211.65,211.61,7.28]
[1758755424847,3.39614404,211.64,211.61,7.28]
[1758755425256,3.39614404,211.64,211.59,7.28]
[1758755425450,12.0996,211.69,211.6,7.28]
[1758755425752,3.39655216,211.68,211.6,7.28]
[1758755425951,7.64635216,211.67,211.6,11.5311]
[1758755426154,3.39655216,211.66,211.6,11.5311]
[1758755426454,3.39655216,211.65,211.6,4.2511]
[1758755426654,4.2498,211.67,211.61,7.28]
[1758755426955,3.39670543,211.66,211.6,4.2511]
[1758755427248,3.39670543,211.65,211.6,4.2511]
[1758755427453,4.2498,211.67,211.61,7.28]
[1758755427754,3.39728909,211.66,211.61,7.28]
[1758755427956,3.39728909,211.65,211.6,4.2511]
[1758755428156,4.2498,211.67,211.61,7.28]
[1758755428351,3.39794932,211.66,211.6,4.2511]
[1758755428548,3.39794932,211.65,211.6,4.2511]
[1758755428756,4.2498,211.67,211.61,7.28]
[1758755428958,3.39782598,211.66,211.61,7.28]
[1758755429252,3.39782598,211.65,211.6,4.2511]
[1758755429456,4.2498,211.67,211.61,7.28]
[1758755429657,3.397865,211.66,211.6,4.2511]
[1758755429857,3.397865,211.65,211.6,4.2511]
[1758755430056,4.2498,211.67,211.61,7.28]
[1758755430258,3.39794417,211.66,211.61,6.95062088]
[1758755430457,3.39794417,211.65,211.61,6.95062088]
[1758755430655,12.0994,211.69,211.62,7.28]
[1758755430855,3.3980337,211.68,211.62,7.28]
[1758755431055,3.3980337,211.67,211.61,6.95062088]
[1758755431260,3.3980337,211.66,211.63,7.28]
[1758755431556,12.0994,211.69,211.63,7.28]
[1758755431852,68.78792088,211.74,211.64,7.28]
[1758755431853,3.39757989,211.68,211.64,7.28]
[1758755432058,4.2491,211.71,211.64,7.28]
[1758755432257,3.39739155,211.7,211.64,7.28]
[1758755432458,3.39739155,211.69,211.64,2.69972088]
[1758755432658,4.2491,211.71,211.65,7.28]
[1758755432861,11.24723437,211.7,211.64,6.95002088]
[1758755433059,3.39723437,211.69,211.64,6.95002088]
[1758755433257,4.2491,211.71,211.65,7.28]
[1758755433458,3.39701979,211.7,211.64,2.69972088]
[1758755433760,12.0986,211.73,211.65,7.28]
[1758755433954,3.39641866,211.72,211.65,7.28]
[1758755434154,12.0986,211.73,211.65,7.28]
[1758755434355,3.39575865,211.72,211.67,2.69972088]
[1758755434552,12.0986,211.73,211.67,9.97972088]
[1758755434752,7.85,211.71,211.67,2.69972088]
[1758755434954,7.85,211.71,211.67,9.97972088]
[1758755436559,4.2486,211.73,211.68,7.28]
[1758755436759,11.24525686,211.72,211.68,7.28]
[1758755436953,3.39525686,211.71,211.68,7.28]
[1758755437153,7.85,211.72,211.68,7.28]
[1758755437350,3.39560457,211.71,211.68,7.28]
[1758755437652,7.85,211.72,211.68,7.28]
[1758755437860,3.3951545,211.71,211.68,7.28]
[1758755438057,7.85,211.72,211.68,7.28]
[1758755438257,3.39550583,211.71,211.68,7.28]
[1758755438452,7.85,211.72,211.68,7.28]
[1758755438659,15.49421614,211.71,211.68,7.28]
[1758755438860,12.0991,211.71,211.68,7.28]
[1758755439859,12.0991,211.71,211.64,122.47002088]
[1758755440064,4.2491,211.71,211.65,7.28]
[1758755440264,7.85,211.72,211.65,11.53]
[1758755440464,3.39536213,211.71,211.65,11.53]
[1758755440664,7.85,211.72,211.65,11.53]
[1758755440964,3.39536007,211.71,211.65,11.53]
[1758755441262,7.85,211.72,211.65,11.53]
[1758755441466,3.39564353,211.71,211.65,11.53]
[1758755441665,7.85,211.72,211.65,11.53]
[1758755441866,3.39564353,211.71,211.65,11.53]
[1758755442162,7.85,211.72,211.65,11.53]
[1758755442366,3.3960436,211.71,211.65,11.53]
[1758755442567,7.85,211.72,211.65,11.53]
[1758755442769,3.3960436,211.71,211.65,11.53]
[1758755442961,7.85,211.72,211.65,7.28]
[1758755443166,66.084,211.76,211.63,119.7106]
[1758755443167,7.85,211.7,211.63,119.7106]
[1758755443362,3.39608035,211.69,211.63,119.7106]
[1758755443762,3.39608035,211.69,211.63,115.46]
[1758755444070,3.39608035,211.69,211.62,122.72]
[1758755445268,7.64568035,211.69,211.62,122.72]
[1758755445468,7.85,211.67,211.62,122.72]
[1758755445673,7.85,211.7,211.62,122.72]
[1758755445873,7.85,211.68,211.62,122.72]
[1758755446064,3.39877063,211.67,211.62,122.72]
[1758755446265,11.24877063,211.66,211.62,122.72]
[1758755446564,7.85,211.66,211.62,122.72]
[1758755447765,7.85,211.66,211.62,115.44]
[1758755447967,10.54972088,211.71,211.63,7.28]
[1758755448259,3.40034115,211.7,211.63,7.28]
[1758755448460,3.40034115,211.69,211.63,7.28]
[1758755448770,7.85,211.67,211.63,7.28]
[1758755449070,3.40034115,211.66,211.63,7.28]
[1758755450170,7.85,211.68,211.63,7.28]
[1758755450171,4.2497,211.68,211.63,7.28]
[1758755450372,11.25139019,211.67,211.63,7.28]
[1758755450571,3.40139019,211.66,211.63,7.28]
[1758755450771,7.85,211.67,211.63,7.28]
[1758755451074,3.40139019,211.66,211.63,7.28]
[1758755451272,7.85,211.67,211.63,7.28]
[1758755451472,3.40146898,211.66,211.63,7.28]
[1758755451672,7.85,211.67,211.63,7.28]
[1758755451873,3.40146898,211.66,211.63,7.28]
[1758755452174,7.85,211.67,211.63,7.28]
[1758755452375,3.39965129,211.66,211.63,7.28]
[1758755452674,3.39965129,211.65,211.63,7.28]
[1758755452974,7.85,211.67,211.63,7.28]
[1758755453270,3.39943727,211.66,211.63,7.28]
[1758755453472,7.85,211.67,211.63,7.28]
[1758755453674,3.39943735,211.66,211.63,7.28]
[1758755453871,7.85,211.67,211.62,115.44]
[1758755454076,3.39943664,211.66,211.63,7.37]
[1758755454273,7.85,211.67,211.62,115.44]
[1758755454472,3.39958715,211.66,211.63,7.37]
[1758755454672,7.85,211.67,211.63,7.37]
[1758755454876,3.3995902,211.66,211.63,7.37]
[1758755455077,7.85,211.67,211.63,7.37]
[1758755455277,3.3995902,211.66,211.63,7.37]
[1758755455576,4.2497,211.68,211.62,115.44]
[1758755455775,3.40058569,211.67,211.63,7.37]
[1758755456073,3.40058569,211.66,211.62,115.44]
[1758755456274,4.2497,211.68,211.62,122.81]
[1758755456476,3.40089738,211.67,211.63,7.37]
[1758755456675,3.40089738,211.66,211.64,7.37]
[1758755456875,11.5097,211.68,211.64,7.37]
[1758755457076,10.66089738,211.67,211.64,7.37]
[1758755457275,3.40089738,211.66,211.64,7.37]
[1758755457475,7.26,211.67,211.64,7.37]
[1758755457675,3.40143263,211.66,211.64,7.37]
[1758755457875,7.26,211.67,211.64,7.37]
[1758755458070,3.40143263,211.66,211.64,7.37]
[1758755458270,7.26,211.67,211.64,7.37]
[1758755458470,3.40168087,211.66,211.64,7.37]
[1758755458677,7.26,211.67,211.64,7.37]
[1758755458872,3.40168087,211.66,211.64,7.37]
[1758755459070,7.26,211.67,211.64,7.37]
[1758755459379,3.40168087,211.66,211.64,7.37]
[1758755459679,7.26,211.67,211.64,7.37]
[1758755459880,3.40168086,211.66,211.64,7.37]
[1758755460083,7.26,211.67,211.64,7.37]
[1758755460378,3.40168086,211.66,211.64,7.37]
[1758755460579,7.26,211.67,211.64,7.37]
[1758755460774,3.40155858,211.66,211.64,7.37]
[1758755461079,7.26,211.67,211.64,7.37]
[1758755461269,3.40155858,211.66,211.64,7.37]
[1758755461469,5.27561049,211.75,211.66,7.82]
[1758755461682,7.98,211.73,211.67,115.38]
[1758755461883,7.98,211.71,211.68,7.82]
[1758755462075,3.40107212,211.7,211.68,7.82]
[1758755462271,3.40107212,211.69,211.68,7.82]
[1758755463178,3.40107212,211.69,211.67,115.38]
[1758755463374,3.40107212,211.68,211.67,115.38]
[1758755463579,3.40107212,211.68,211.67,123.2]
[1758755464888,4.2489,211.72,211.68,7.82]
[1758755465082,3.40081926,211.71,211.68,7.82]
[1758755465282,3.40081926,211.7,211.68,7.82]
[1758755465482,3.40081926,211.69,211.67,115.38]
[1758755465686,3.40081926,211.68,211.67,115.38]
[1758755465883,3.40081926,211.68,211.67,123.2]
[1758755466088,3.40081926,211.7,211.67,123.2]
[1758755466389,3.40081926,211.69,211.67,123.2]
[1758755466590,3.40081926,211.68,211.67,123.2]
[1758755466988,3.40081926,211.7,211.67,123.2]
[1758755467288,3.40081926,211.69,211.67,123.2]
[1758755467488,4.2491,211.71,211.67,123.2]
[1758755467489,3.40081926,211.68,211.67,123.2]
[1758755467688,3.40081926,211.7,211.67,123.2]
[1758755467890,3.40081926,211.69,211.67,123.2]
[1758755468088,3.40081926,211.68,211.67,123.2]
[1758755468285,3.40081926,211.7,211.67,123.2]
[1758755468485,3.40081926,211.69,211.67,123.2]
[1758755468687,3.40081926,211.68,211.67,123.2]
[1758755468988,3.40081926,211.7,211.67,123.2]
[1758755469191,3.40081926,211.69,211.67,115.38]
[1758755469390,12.2291,211.71,211.68,7.82]
[1758755469588,3.40098696,211.7,211.68,7.82]
[1758755469793,3.40098696,211.69,211.68,7.82]
[1758755470794,3.40098696,211.69,211.67,115.38]
[1758755470993,3.40098696,211.68,211.67,123.2]
[1758755471287,3.40098696,211.68,211.67,115.38]
[1758755473594,3.40098696,211.68,211.64,7.82]
[1758755473795,3.40098696,211.67,211.66,7.82]
[1758755481595,2.55955866,211.67,211.66,12.07]
[1758755481800,7.98,211.72,211.66,9.54801557]
[1758755482490,7.98,211.72,211.65,101.6]
[1758755482491,1.72801557,211.74,211.69,7.82]
[1758755482691,7.00362606,211.77,211.71,7.82]
[1758755482999,184.13206343,211.8,211.74,1.72801557]
[1758755483202,188.56446851,211.8,211.74,1.72801557]
[1758755483396,188.56446851,211.8,211.73,7.82]
[1758755484291,188.56446851,211.8,211.72,1.72801557]
[1758755484292,7.35,211.77,211.72,1.72801557]
[1758755484490,4.2478,211.78,211.73,7.45]
[1758755484689,4.2478,211.78,211.72,1.72801557]
[1758755484899,4.248,211.77,211.73,7.45]
[1758755485202,11.598,211.77,211.71,117.08801557]
[1758755487601,5.97541557,211.79,211.72,7.45]
[1758755487796,5.97541557,211.79,211.73,1.72801557]
[1758755488002,5.97541557,211.79,211.71,115.36]
[1758755488003,5.97541557,211.79,211.72,7.45]
[1758755488597,7.35,211.78,211.72,7.45]
[1758755490206,7.35,211.78,211.72,11.6987]
[1758755492211,5.97541557,211.79,211.73,7.45]
[1758755493503,4.2478,211.78,211.73,7.45]
[1758755493700,10.73587585,211.77,211.73,7.45]
[1758755493905,3.38587585,211.76,211.73,7.45]
[1758755494103,3.38587585,211.76,211.72,4.2487]
[1758755494406,3.38587585,211.76,211.73,7.45]
[1758755495110,3.38587585,211.76,211.72,4.2487]
[1758755495305,7.35,211.77,211.73,7.45]
[1758755496412,1.72801557,211.78,211.72,4.2487]
[1758755496709,187.93446851,211.8,211.74,4.2484]
[1758755496909,3.38489783,211.79,211.75,7.45]
[1758755497109,3.38489783,211.78,211.74,4.2484]
[1758755497411,187.93446851,211.8,211.75,7.45]
[1758755497705,3.38432253,211.79,211.75,7.45]
[1758755497911,180.58446851,211.8,211.74,11.6984]
[1758755498208,10.734322,211.79,211.75,7.45]
[1758755498409,7.35,211.79,211.75,7.45]
[1758755498705,7.35,211.79,211.74,4.2484]
[1758755498909,7.35,211.79,211.75,7.45]
[1758755499612,7.35,211.79,211.74,4.2484]
[1758755499813,7.35,211.79,211.75,7.45]
[1758755500015,184.83176851,211.8,211.75,7.45]
[1758755500214,7.35,211.78,211.75,7.45]
[1758755502516,180.58446851,211.8,211.74,7.45]
[1758755503113,180.58446851,211.8,211.74,11.6983]
[1758755505618,7.35,211.79,211.75,7.45]
[1758755507420,7.35,211.79,211.74,4.2483]
[1758755507821,7.35,211.79,211.75,7.45]
[1758755508416,180.58446851,211.8,211.75,7.45]
[1758755508619,7.35,211.79,211.76,7.45]
[1758755510817,1.72801557,211.8,211.76,7.45]
[1758755511021,7.35,211.79,211.76,7.45]
[1758755511216,7.35,211.79,211.72,7.45]
[1758755511417,1.72801557,211.77,211.7,14.45707396]
[1758755511613,7.35,211.74,211.71,7.45]
[1758755512217,7.35,211.74,211.64,343.72]
[1758755512423,9.07801557,211.72,211.65,7.45]
[1758755512624,9.07801557,211.72,211.66,115.28]
[1758755513028,7.35,211.68,211.65,7.45]
[1758755513325,7.35,211.68,211.64,480.67317519]
[1758755513526,1.72801557,211.69,211.64,480.67317519]
[1758755513724,7.35,211.68,211.64,480.67317519]